Cogmind - Beta 13 @@@ ROGUE MODE // 2024.04.15 @ 10:56:12 Player: MO-55 Result: Destroyed by Y-45 Defender with Beam Rifle Performance ------------- Evolutions (2) 1000 Regions Visited (5) 1000 Robots Destroyed (90) 450 Value Destroyed (3382) 3382 Prototype IDs (14) 280 Alien Tech Used (0) 0 Bonus (1379) 1379 TOTAL SCORE: 7491 Bonus ------- High Alert Combat Kills 179 Entered Garrisons 200 Used RIF Installer 1000 Cogmind --------- Core Integrity 0/550 Matter 168/300 Energy 180/180 System Corruption 1% Temperature Cool (9) Movement Treading (237) Ox1 Location -8/Materials Parts ------- > --- POWER (1) -------- Meta Core > --- PROPULSION (4+1) - Light Treads Light Treads Light Treads Light Treads Advanced Treads (+) > --- UTILITY (4+1) ---- Huge Storage Unit Machine Analyzer (+) Hardened Heavy Armor Plating Gun Armor > --- WEAPON (2+2) ----- Heavy Assault Rifle Autogun Enhanced Autogun (+) > --- INVENTORY (25) --- Reinforced Ion Engine Light Treads Light Treads Armored Wheel Improved Heat Sink High-capacity Matter Pod (200) Machine Analyzer Advanced Visual Processing Unit Improved Terrain Scanner Hardened Heavy Armor Plating Hardened Heavy Armor Plating Hardened Heavy Armor Plating Hacking Suite Relay Coupler [NC] (27) Relay Coupler [NC] (26) Relay Coupler [Swarmer] (37) Relay Coupler [Grunt] (27) High-powered Tractor Beam Advanced Beam Rifle Missile Launcher Hammer Peak State ------------ > --- POWER ------------ Meta Core > --- PROPULSION ------- Light Treads Light Treads Light Treads Light Treads Advanced Treads > --- UTILITY ---------- Huge Storage Unit Machine Analyzer Hardened Heavy Armor Plating Gun Armor > --- WEAPON ----------- Heavy Assault Rifle Minigun Enhanced Autogun Enhanced Autogun > --- INVENTORY -------- Reinforced Ion Engine Light Treads Wheel High-capacity Matter Pod Machine Analyzer Improved Sensor Array Improved Signal Interpreter Improved Terrain Scanner Improved Targeting Computer Hardened Heavy Armor Plating Hardened Heavy Armor Plating Hardened Heavy Armor Plating Hacking Suite Hacking Suite High-powered Tractor Beam Field Laser Advanced Beam Rifle Autogun Missile Launcher Hammer [Rating: 60] Favorites ----------- Power Ion Engine Engine Ion Engine Power Core Meta Core Propulsion Light Treads Treads Light Treads Leg Aluminum Leg Wheel Wheel Flight Unit Improved Flight Unit Utility Huge Storage Unit Device Improved Terrain Scanner Storage Huge Storage Unit Processor Machine Analyzer Hackware Hacking Suite Protection Gun Armor Weapon Enhanced Autogun Energy Gun Pulse Rifle Energy Cannon Subdweller Beam Cannon Ballistic Gun Enhanced Autogun Ballistic Cannon Light Cannon Launcher Advanced EMP Blaster Impact Weapon Hammer Build | -11 -10 -10 -8 -8 -8 ------- Run | Yrd Mat Sub Mat Gar Mat Slots Evolved 4 | . . . 4 . . Power . | . . . . . . Propulsion 2 | . . . 2 . . Utility 2 | . . . 2 . . Weapon . | . . . . . . Parts Attached 90 | 6 23 9 30 22 . Power 6 | 1 . 2 3 . . Engine 5 | 1 . 2 2 . . Core 1 | . . . 1 . . Reactor . | . . . . . . Propulsion 31 | 1 11 2 8 9 . Treads 20 | . 6 . 5 9 . Leg 2 | 1 1 . . . . Wheel 8 | . 4 2 2 . . Hover . | . . . . . . Flight 1 | . . . 1 . . Utility 18 | 2 6 1 7 2 . Device 3 | 1 1 . 1 . . Storage 2 | 1 1 . . . . Processor 1 | . . . 1 . . Hackware 1 | . . . . 1 . Protection 11 | . 4 1 5 1 . Artifact . | . . . . . . Weapon 35 | 2 6 4 12 11 . Energy Gun 6 | 1 1 . 3 1 . Energy Cannon 2 | . . 1 1 . . Ballistic Gun 17 | 1 2 1 7 6 . Ballistic Cannon 3 | . 2 1 . . . Launcher 1 | . . . 1 . . Special Weapon . | . . . . . . Impact Weapon 6 | . 1 1 . 4 . Slashing Weapon . | . . . . . . Piercing Weapon . | . . . . . . Special Melee Weapon . | . . . . . . Unidentified Prototypes 4 | . . . 4 . . Parts Lost 11 | . . 6 2 3 . Power 2 | . . 2 . . . Propulsion 5 | . . 1 2 2 . Utility . | . . . . . . Weapon 4 | . . 3 . 1 . Highest Loss Streak 3 | . . 3 2 1 . To Critical Strikes . | . . . . . . Average Slot Usage (%) 93 | . 99 98 90 85 86 Engine 7 | . 14 13 4 . . Core 2 | . . . 3 6 6 Treads 23 | . 23 8 22 31 33 Wheel 5 | . 3 19 7 . . Device 3 | . 7 . 3 . . Storage 10 | . 14 14 7 6 6 Processor 2 | . . . 3 6 6 Protection 11 | . 6 14 16 12 13 Energy Gun 2 | . 2 6 2 1 . Energy Cannon 1 | . . 4 4 . . Ballistic Gun 15 | . 15 10 13 19 20 Ballistic Cannon 3 | . 9 2 . . . Naked Turns . | . . . . . . Heaviest Build 122 | 13 93 95 122 122 119 Greatest Support 102 | 10 40 40 102 102 102 Greatest Overweight (x) 32 | 1 29 4 32 1 1 Average Overweight (x) 2 | . 2 3 3 1 1 Largest Inventory Capacity 25 | 8 25 25 25 25 25 Average Capacity 24 | 7 24 25 25 25 25 Most Carried 25 | 6 18 18 25 25 25 Average Carried 17 | 4 10 15 22 24 24 Final Capacity 25 | 8 25 25 25 25 25 Final Carried 25 | 6 18 16 24 25 24 Class Distribution -------------------- 60% | Mutant 31% | Scavenger-Tank 6% | Tank Dominant Class ---------------- Mutant | -10/Materials Mutant | -10/Subcaves Mutant | -8/Materials Scavenger-Tank | -8/Garrison Scavenger-Tank | -8/Materials Resources | -11 -10 -10 -8 -8 -8 ----------- Run | Yrd Mat Sub Mat Gar Mat Matter Collected 3062 | 238 783 207 814 1020 . Remotely . | . . . . . . Salvage Created 3041 | 38 673 102 1362 866 . Parts 195 | 5 40 10 81 59 . Haulers Intercepted 4 | . 1 . 3 . . Recyclers Shooed 2 | . . . 2 . . Parts Field Recycled . | . . . . . . Retrieved Matter . | . . . . . . Parts Self-Destructed 2 | . . 2 . . . Prevented . | . . . . . . Kills | -11 -10 -10 -8 -8 -8 ------- Run | Yrd Mat Sub Mat Gar Mat Combat Hostiles Destroyed 62 | . 14 6 16 26 . Melee 4 | . . 2 . 2 . Guns 41 | . 4 1 14 22 . Cannons 15 | . 10 3 2 . . Classes Destroyed 16 | 1 7 1 5 2 . Worker 4 | . . . 4 . . Builder 2 | . . . 2 . . Tunneler 3 | 2 . . 1 . . Hauler 4 | . 1 . 3 . . Recycler 7 | . 2 . 5 . . Mechanic 1 | . 1 . . . . Operator 2 | . 1 . 1 . . Watcher 5 | . 3 . 2 . . Swarmer 21 | . 3 3 4 11 . Saboteur 2 | . . . . 2 . Grunt 22 | . 11 . 5 6 . Brawler 2 | . . . 1 1 . Sentry 10 | . . . 5 5 . Hunter 1 | . . . 1 . . Programmer 1 | . . . . 1 . Subdweller 3 | . . 3 . . . Best Kill Streak 6 | 1 3 3 6 6 . Combat Bots Only 6 | . 3 3 5 6 . Max Kills in Single Turn 2 | 1 1 1 2 2 . Gunslinging 1 | . . . 1 1 . Exploded . | . . . . . . Melee 1 | . . 1 . 1 . Uniques/NPCs Destroyed . | . . . . . . Combat | -11 -10 -10 -8 -8 -8 -------- Run | Yrd Mat Sub Mat Gar Mat Hostile Shots Fired 319 | . 70 54 61 133 1 Missed 74 | . 24 14 14 22 . Damage Taken 3476 | . 507 470 723 1762 14 Core 747 | . 101 86 96 450 14 Absorbed by Shields 29 | . . . . 29 . Redirected to Shielding 83 | . 18 18 47 . . Core Remaining (%) 62 | 100 . 25 . . . Volleys Fired 229 | 6 63 18 77 65 . Largest 4 | 2 2 2 4 4 . Hottest 148 | 60 70 85 148 111 . Shots Fired 592 | 12 126 33 220 201 . Gun 479 | 12 72 17 177 201 . Cannon 113 | . 54 16 43 . . Launcher . | . . . . . . Special . | . . . . . . Kinetic 491 | 6 125 15 151 194 . Thermal 101 | 6 1 18 69 7 . Explosive . | . . . . . . Electromagnetic . | . . . . . . Robot Hit Streak 12 | 4 11 7 12 10 . Robot Miss Streak 11 | 1 5 1 6 11 . Penetration Max . | . . . . . . Secondary Targets 10 | . . . 3 7 . Max Gunslinging Chain 1 | . . . 1 1 . Shots Hit Robots 337 | 9 84 23 128 93 . Core Hits 126 | 3 30 9 48 36 . Critical Kills 1 | 1 . . . . . Critical Parts Destroyed 3 | . . 1 1 1 . Critical Strikes 13 | 1 4 3 3 2 . Burn 4 | . . 1 2 1 . Destroy 2 | 1 . . 1 . . Blast 5 | . 4 1 . . . Smash 2 | . . 1 . 1 . Melee Attacks 12 | . 2 3 . 7 . Impact 12 | . 2 3 . 7 . Slashing . | . . . . . . Piercing . | . . . . . . Sneak Attacks . | . . . . . . Combat Hostiles . | . . . . . . Follow-up Attacks . | . . . . . . Damage Inflicted 6012 | 87 1242 448 2553 1682 . Guns 4204 | 87 620 109 1796 1592 . Cannons 1608 | . 622 244 742 . . Explosions . | . . . . . . Melee 185 | . . 95 . 90 . Ramming 15 | . . . 15 . . Kinetic 4570 | 41 1230 254 1541 1504 . Thermal 1242 | 46 12 99 997 88 . Explosive . | . . . . . . Electromagnetic . | . . . . . . Impact 185 | . . 95 . 90 . Slashing . | . . . . . . Piercing . | . . . . . . Highest Corruption 1 | . . . 1 1 1 Average Corruption 1 | . . . 1 1 1 Corruption Purged . | . . . . . . Corruption Blocked . | . . . . . . Effects 21 | . . . 8 13 . Message Errors 6 | . . . 3 3 . Matter Fused 9 | . . . 1 8 . Energy Discharges 1 | . . . . 1 . Data Loss (minor) 3 | . . . 3 . . Data Loss (major) 1 | . . . . 1 . Misfires 1 | . . . 1 . . Overload Shots . | . . . . . . Overflow Damage 80 | . 7 20 15 38 . Projectiles 22 | . 7 . 15 . . Explosions . | . . . . . . Melee 58 | . . 20 . 38 . Knockbacks 9 | . 7 2 . . . Impact . | . . . . . . Kinetic 7 | . 5 2 . . . Secondary 2 | . 2 . . . . Self-Inflicted Damage . | . . . . . . Shots . | . . . . . . Rammed 1 | . . . 1 . . Targets Rammed 1 | . . . 1 . . Kicked . | . . . . . . Crushed . | . . . . . . Highest Temperature 806 | 20 17 . 390 806 . Average Temperature 148 | 15 6 . 116 217 . Received Heat Transfer 1050 | . 240 12 243 546 9 Effects 41 | . . . 5 36 . Shutdowns 7 | . . . . 7 . Energy Bleed 7 | . . . 1 6 . Interference 10 | . . . 3 7 . Matter Decay 5 | . . . 1 4 . Damage (minor) 5 | . . . . 5 . Damage (major) 3 | . . . . 3 . Damage (core) 4 | . . . . 4 . Siege Activations . | . . . . . . Robots Corrupted . | . . . . . . Combat Hostiles . | . . . . . . Parts Fried 1 | . . . . 1 . Impact Corruptions 3 | . . 1 . 2 . Robots Melted . | . . . . . . Combat Hostiles . | . . . . . . Parts Melted 2 | . . . 2 . . Heat Transferred 2431 | 100 37 370 1702 222 . Parts Sabotaged 5 | . . . . 5 . Parts Stolen . | . . . . . . Parts Stripped . | . . . . . . Power Chain Reactions . | . . . . . . Alert | -11 -10 -10 -8 -8 -8 ------- Run | Yrd Mat Sub Mat Gar Mat Peak Influence 1196 | 10 171 . 357 1196 584 Initial 583 | . 6 . . 136 583 Average 237 | 3 45 . 147 658 583 Maximum Alert Level 4 | . . . 1 4 2 Low Security (%) 63 | 100 100 . 62 6 . Level 1 17 | . . . 37 24 . Level 2 7 | . . . . 20 100 Level 3 7 | . . . . 32 . Level 4 3 | . . . . 15 . Level 5 . | . . . . . . High Security . | . . . . . . Max Security . | . . . . . . Squads Dispatched 4 | . 2 . 2 . . Investigation . | . . . . . . Extermination . | . . . . . . Reinforcement 3 | . 2 . 1 . . Assault . | . . . . . . Garrison 1 | . . . 1 . . Intercept . | . . . . . . Searches Triggered . | . . . . . . Construction Impeded . | . . . . . . Haulers Reinforced . | . . . . . . Active Scanning Responses . | . . . . . . Cargo Convoy Interrupts . | . . . . . . Stealth | -11 -10 -10 -8 -8 -8 --------- Run | Yrd Mat Sub Mat Gar Mat Distress Signals 4 | . 2 . 2 . . Communications Jammed . | . . . . . . Distress Signals . | . . . . . . Times Spotted 93 | . 24 8 31 29 1 Peak Tracking Total 6 | . 4 6 5 4 . Tactical Retreats 2 | . . 1 . 1 . Traps | -11 -10 -10 -8 -8 -8 ------- Run | Yrd Mat Sub Mat Gar Mat Traps Triggered 6 | . 1 . 1 4 . Indirectly . | . . . . . . Trap Hack Attempts . | . . . . . . Triggered . | . . . . . . Disarmed . | . . . . . . Reprogrammed . | . . . . . . Reused . | . . . . . . Traps Extracted . | . . . . . . Installed . | . . . . . . Triggered 4 | . . 4 . . . Machines | -11 -10 -10 -8 -8 -8 ---------- Run | Yrd Mat Sub Mat Gar Mat Machines Disabled 12 | . 1 1 3 7 . Max in Single Turn 2 | . 1 1 1 2 . Garrison Relay 5 | . . . . 5 . Phase Generator 1 | . . . . 1 . Machines Repaired . | . . . . . . Machines Dismantled . | . . . . . . Machines Sabotaged . | . . . . . . Overloaded Fab Kills . | . . . . . . Hacking | -11 -10 -10 -8 -8 -8 --------- Run | Yrd Mat Sub Mat Gar Mat Machines Accessed 17 | . 4 1 8 2 2 Terminals 11 | . 3 . 6 2 . Fabricators . | . . . . . . Repair Stations 2 | . 1 . . . 1 Recycling Units . | . . . . . . Scanalyzers 2 | . . . 1 . 1 Garrison Access 1 | . . . 1 . . Total Hacks 63 | . 14 1 26 3 19 Successful 36 | . 7 1 10 2 16 Failed 27 | . 7 . 16 1 3 Catastrophic 6 | . 1 . 4 . 1 Database Lockouts . | . . . . . . Manual 18 | . 11 . 7 . . Terminals 35 | . 12 . 20 3 . Fabricators . | . . . . . . Repair Stations 4 | . 2 . . . 2 Recycling Units . | . . . . . . Scanalyzers 21 | . . . 4 . 17 Garrison Access 2 | . . . 2 . . Terminal Hacks 13 | . 4 1 6 2 . Robot Analysis 3 | . 3 . . . . Emergency Access Points 1 | . . . . 1 . Terminal Index 1 | . . . 1 . . Unreport Threat 1 | . . . 1 . . Locate Traps 4 | . 1 . 3 . . Zone Layout 1 | . . . 1 . . Garrison Registry 1 | . . . . 1 . Derelict Proto ID Bank 1 | . . 1 . . . Fabricator Hacks . | . . . . . . Repair Station Hacks 2 | . 1 . . . 1 Scan Component 2 | . 1 . . . 1 Recycling Unit Hacks . | . . . . . . Scanalyzer 17 | . . . 2 . 15 Insert Component 7 | . . . 1 . 6 Analyze 10 | . . . 1 . 9 Garrison Access Hacks 1 | . . . 1 . . Unlock Access 1 | . . . 1 . . Unauthorized Hacks 3 | . 2 . 1 . . Terminals 3 | . 2 . 1 . . Botnet 3 | . 2 . 1 . . Fabricators . | . . . . . . Repair Stations . | . . . . . . Recycling Units . | . . . . . . Scanalyzers . | . . . . . . Garrison Access . | . . . . . . Data Cores Recovered . | . . . . . . Used . | . . . . . . Hacking Detections 14 | . 3 . 8 1 2 Full Trace Events . | . . . . . . Feedback Events . | . . . . . . Feedback Blocked . | . . . . . . Robot Schematics Acquired . | . . . . . . Robots Built . | . . . . . . Authchips . | . . . . . . Time . | . . . . . . Total Robot Build Rating . | . . . . . . Part Schematics Acquired 7 | . . . 1 . 6 Parts Built . | . . . . . . Authchips . | . . . . . . Time . | . . . . . . Total Part Build Rating . | . . . . . . Parts Repaired . | . . . . . . Time . | . . . . . . Parts Recycled . | . . . . . . Recycled Matter . | . . . . . . Retrieved Matter . | . . . . . . Retrieved Components . | . . . . . . Parts Scanalyzed 7 | . . . 1 . 6 Part Schematics Acquired 7 | . . . 1 . 6 Parts Damaged 1 | . . . . . 1 Bothacking | -11 -10 -10 -8 -8 -8 ------------ Run | Yrd Mat Sub Mat Gar Mat Used RIF Installer 2 | . . . . 2 . Zone Cloak 1 | . . . . 1 . Robots Hacked . | . . . . . . Non-combat . | . . . . . . Combat . | . . . . . . Robot Hacks Applied . | . . . . . . Relay Couplers Released 26 | . . . . 26 . Machine Destruction 22 | . . . . 22 . Programmers 4 | . . . . 4 . Fabnet Peak Effective % . | . . . . . . Robots Rewired . | . . . . . . Allies Hacked . | . . . . . . Hacks Repelled . | . . . . . . Allies | -11 -10 -10 -8 -8 -8 -------- Run | Yrd Mat Sub Mat Gar Mat Total Allies . | . . . . . . Largest Group . | . . . . . . Highest-Rated Group . | . . . . . . Highest-Rated Ally . | . . . . . . Total Orders . | . . . . . . Ally Attacks . | . . . . . . Total Damage . | . . . . . . Kills . | . . . . . . Allies Corrupted . | . . . . . . Allies Melted . | . . . . . . Intel | -11 -10 -10 -8 -8 -8 ------- Run | Yrd Mat Sub Mat Gar Mat Robot Analysis Total 3 | . 3 . . . . Derelict Logs Recovered 1 | . . 1 . . . Drone Launches . | . . . . . . Drone Recoveries . | . . . . . . Exploration | -11 -10 -10 -8 -8 -8 ------------- Run | Yrd Mat Sub Mat Gar Mat Turns Passed 6693 | 159 2315 729 1914 1426 150 Spaces Moved 2453 | 67 718 379 748 479 62 Core 8 | 6 1 . 1 . . Treads 1485 | . 518 58 368 479 62 Legs 73 | 61 12 . . . . Wheels 887 | . 187 321 379 . . Hover . | . . . . . . Flight . | . . . . . . Fastest Speed 50 | 50 80 140 140 235 237 Average Speed 223 | 167 271 167 200 236 237 Slowest Speed 1650 | 190 1500 320 1650 237 237 Overloaded Moves . | . . . . . . Propulsion Burnouts . | . . . . . . Robots Hopped . | . . . . . . Cave-ins Triggered . | . . . . . . Exploration Rate (%) 43 | 6 96 22 64 67 7 Regions Visited 5 Branch Regions 1 Pre-discovered Areas . | . . . . . . Known Exits Taken 1 | . . . 1 . . Unknown Exits Taken 3 | 1 1 1 . . . Scrap Searched 1 | . . 1 . . . Spaces Dug 2 | . 2 . . . . Terrain Destroyed 87 | . 2 . 11 74 . Melee 2 | . 2 . . . . Projectile 11 | . . . 11 . . AOE 74 | . . . . 74 . Terrain Rammed . | . . . . . . Walls Destroyed . | . . . . . . Machines Disabled . | . . . . . . Actions | -11 -10 -10 -8 -8 -8 --------- Run | Yrd Mat Sub Mat Gar Mat Total 3274 | 101 953 434 1058 661 67 Wait 343 | 17 126 21 117 62 . Move 2448 | 66 717 378 747 478 62 Hop . | . . . . . . Pick Up 75 | 6 15 4 40 8 2 Fast Attach 35 | 6 5 1 15 8 . Attach 18 | . 1 6 9 2 . Detach 4 | . 1 . 2 1 . Swap 37 | . 17 2 6 12 . Drop 65 | . 6 1 44 11 3 Fire 229 | 6 63 18 77 65 . Melee 12 | . 2 3 . 7 . Ram . | . . . . . . Kick . | . . . . . . Crush 1 | . . . 1 . . Escape Stasis 7 | . . . . 7 . Rewire . | . . . . . . Trap . | . . . . . . Miscellaneous . | . . . . . . Route ------- -11/Scrapyard -10/Materials (discovered 4 exits: [*Mat x2] / [*Min] / *Sub) -10/Subcaves (discovered 2 exits: *Mat x2) -8/Materials (discovered 4 exits: [*Fac x2] / [*Sto] / Gar) -8/Garrison (discovered 3 exits: *Mat x3) -8/Materials History --------- Turn | Location | Event 11 | -11/Scrapyard | Discovered new exit (range 14) 160 | -11/Scrapyard | Entered Materials 304 | -10/Materials | Build established: Mutant 948 | -10/Materials | Discovered new exit (range 4) 1882 | -10/Materials | Discovered new exit (range 7) 2002 | -10/Materials | Discovered new exit (range 12) 2447 | -10/Materials | Discovered new exit (range 9) 2475 | -10/Materials | Entered Subcaves 2665 | -10/Subcaves | A Subdweller sparked back to life 2673 | -10/Subcaves | Core integrity fell below 50% 2717 | -10/Subcaves | Lost 3 parts (1p1n1w) 2725 | -10/Subcaves | Found Prototype Power Core 2862 | -10/Subcaves | Lost 3 parts (1p2w) 2950 | -10/Subcaves | Discovered new exit (range 16) 3071 | -10/Subcaves | Learned Materials terminal intel 3111 | -10/Subcaves | Discovered new exit (range 5) 3149 | -10/Subcaves | Visited 4L-MR0's lab 3154 | -10/Subcaves | Identified Meta Core 3161 | -10/Subcaves | Found Gun Armor 3204 | -10/Subcaves | Entered Materials 3204 | -8/Materials | Evolved 4 slots: Propulsion x2, Utility x2 3205 | -8/Materials | Loaded intel: 12 terminal locations 4111 | -8/Materials | Attached Meta Core, gained temporary slots: Propulsion, Utility, Weapon 4120 | -8/Materials | Attached Gun Armor, gained temporary slots: Weapon x2 4194 | -8/Materials | Discovered new exit (range 9) 4432 | -8/Materials | Build established: Tank 4799 | -8/Materials | Discovered new exit (range 8) 4855 | -8/Materials | Build established: Scavenger-Tank 4880 | -8/Materials | Discovered new exit (range 16) 5021 | -8/Materials | Garrison activated, responded to threat 5113 | -8/Materials | Identified exit to Garrison 5118 | -8/Materials | Entered Garrison 5158 | -8/Garrison | Discovered new exit (range 50) 5158 | -8/Garrison | Discovered new exit (range 87) 5158 | -8/Garrison | Discovered new exit (range 43) 5180 | -8/Garrison | Triggered checkpoint 5208 | -8/Garrison | Garrison Relay disabled 5279 | -8/Garrison | Installed Relay Interface Framework 5352 | -8/Garrison | Triggered checkpoint 5379 | -8/Garrison | Triggered checkpoint 5510 | -8/Garrison | Core integrity fell below 50% 5550 | -8/Garrison | Core integrity fell below 20% 5699 | -8/Garrison | Phase Generator disabled 5792 | -8/Garrison | Triggered checkpoint 5831 | -8/Garrison | Garrison Relay disabled 5848 | -8/Garrison | Garrison Relay disabled 5906 | -8/Garrison | Garrison Relay disabled 6160 | -8/Garrison | Triggered checkpoint 6209 | -8/Garrison | Triggered checkpoint 6398 | -8/Garrison | Garrison Relay disabled 6506 | -8/Garrison | Expanded RIF knowledge: Zone Cloak 6544 | -8/Garrison | Entered Materials 6694 | -8/Materials | Destroyed by Y-45 Defender with Beam Rifle Last Messages --------------- >>Scanalyze Scanning: Machine Analyzer... Scan incomplete, additional scanning required. >>Scanalyze Scanning: Machine Analyzer... Scan incomplete, additional scanning required. >>Scanalyze Scanning: Machine Analyzer... Schematic downloaded. 06583_ Dropped Broken Imp. Signal Interpreter. 06617_ >> Machine Analyzer network decryption results: 06617_ Repair Station x1 06636_ Connecting with Repair Station... >>Scan(Hrd. Heavy Armor Plating) Scanning Hrd. Heavy Armor Plating... Ready to Repair: Hrd. Heavy Armor Plating Rating: 4 Time: 22 Map ----- +----------------------------------------------------+ | ?????????????????????"""?????????????????????????? | | ?????????????????????"""?????????????????????????? | | ?????????????????????????????????????????????????? | | ?????????????????????????"""?????????????????????? | | ??????????????????????????R"?????????????????????? | | ?????????????????????????"""?????????????????????? | | ?????????????????????????????????????????????????? | | ?????????????????????????????????????????????????? | | ?????????????????????????????????????????????????? | | ?????????????????????????????????????????????????? | | ???????????????????????? Y ??????????????????????? | | ???????????????????????? ??????????????????????? | | ???????????????????????? ?????????????????????? | | ???????????????????????# #?????????????????????? | | ???????????????????????# #?????????????????????? | | ???????????????????????# #?????????????????????? | | ???????????????????????# #?????????????????????? | | ???????????????????????# #?????????????????????? | | ???????????????????????# #?????????????????????? | | ???????????????????????# #?????????????????????? | | ???????????????????????# #?????????????????????? | | ??????????????????"""??# #?????????????????????? | | ?# #############"""??# #?????????????????????? | | ?# + ##"""??# +?"T"?????????????????? | | ?# #### """ ##"""??# #?"""?????????????????? | | ????????# """ #? ??# @ #?????????????????????? | | ????????# """ ####+### #####?????????????????? | | ????????# # #?????????????????? | | ????????# + #?????????????????? | | ????????# """# #?????????????????? | | ????????# """#########+######?????????????????? | | ????????# R"#????# #??????????????????? | | ????????# """#????# """ #??????????????????? | | ????????# ! #????# """ =#??????????????????? | | ????????#########????# """ !/ #??????????????????? | | ?????????????????????# ! /=#??????????????????? | | ?????????????????????# !"" /= #??????????????????? | | ?????????????????????# S"" #??????????????????? | | ?????????????????????# "" #??????????????????? | | ?????????????????????# #??????????????????? | | ?????????????????????##########??????????????????? | | ?????????????????????????????????????????????????? | | ?????????????????????????????????????????????????? | | | | | | | | | | | | | | | +----------------------------------------------------+ Best States ------------- Heat Dissipation 45 Energy Generation 17 Energy Capacity 265 Matter Stores 300 Matter Capacity 300 Sight Range 16 Terrain Scan Range 16 Terrain Scan Density 10 Armor Coverage 660 Core Shielding 20 Propulsion Shielding 33 Evasion (%) 45 Recoil Reduction 5 Item Schematics ----------------- Hrd. Heavy Armor Plating | -8/Materials | Scanalyzed Hacking Suite | -8/Materials | Scanalyzed Lgt. Treads | -8/Materials | Scanalyzed Arm. Wheel | -8/Materials | Scanalyzed Imp. Signal Interpreter | -8/Materials | Scanalyzed Hpw. Tractor Beam | -8/Materials | Scanalyzed Machine Analyzer | -8/Materials | Scanalyzed Robot Schematics ------------------ None Fabricated ------------ Nothing Alien Tech Used ----------------- None Achievements -------------- None Challenges ------------ None Game ------ Seed SubdwellerElectronSpecial Manual? 0 Play Time 00:53:05 Cumulative 103.4 hours Start 2024.04.15 @ 10:02:06 End 2024.04.15 @ 10:56:12 Sessions 1 Manual Loads 0 Difficulty Rogue Special Mode None Game No. 87 Rogue 87 Adventurer 0 Explorer 0 Win Type - Total 2 Types 1/0/1/0/0/0/0/0/0 Lore% 48 Gallery% 61 Achievement% 50 Wizard Run 0 Options --------- Layout 2 ASCII 0 Keyboard 0 Movement Mouse Keybinds 0 Fullscreen 2 Font 32/SmallcapsGlow Map View 50x44 Zoom Use 0% Tactical HUD 1 Map Filters NONE Filters NONE Steam 1 RUN: 42f7c6d2-ecb9-4e02-9051-a14066253b5c